fUSD/lending_fUSD_20250313
["ID","MTS","AMOUNT","RATE_DAILY","PERIOD"]
[356107378,1741909880474,-500.0,0.00025164,3]
[356107379,1741909880486,-637.9,0.00025164,3]
[356107380,1741909880496,-500.0,0.00025164,3]
[356107381,1741909880506,-500.0,0.00025164,3]
[356107382,1741909880517,-591.31265145,0.00025164,3]
[356107383,1741909880527,-500.0,0.00025164,3]
[356107384,1741909880537,-500.0,0.00025164,3]
[356107385,1741909880546,-500.0,0.00025164,3]
[356107386,1741909880556,-500.0,0.00025164,3]
[356107387,1741909880565,-500.0,0.00025164,3]
[356107388,1741909880575,-1951.21,0.00025164,3]
[356107389,1741909880585,-500.0,0.00025164,3]
[356107390,1741909880594,-500.0,0.00025164,3]
[356107391,1741909880605,-500.0,0.00025164,3]
[356107392,1741909880615,-1319.48,0.00025164,3]
[356107393,1741909880624,-500.0,0.00025164,3]
[356107394,1741909880633,-500.0,0.00025164,3]
[356107395,1741909880643,-500.0,0.00025164,3]
[356107396,1741909880653,-500.0,0.00025164,3]
[356107397,1741909880662,-500.0,0.00025164,3]
[356107398,1741909880672,-618.71832837,0.00025164,3]
[356107399,1741909880681,-500.0,0.00025164,2]
[356107400,1741909880690,-761.68,0.00025164,3]
[356107401,1741909880700,-500.0,0.00025164,3]
[356107402,1741909880709,-1173.33,0.00025164,3]
[356107403,1741909880720,-1194.67,0.00025164,3]
[356107404,1741909880730,-500.0,0.00025164,3]
[356107405,1741909880740,-500.0,0.00025164,3]
[356107406,1741909880750,-409.37656429,0.00025164,3]
[356107407,1741909880760,-500.0,0.00025164,3]
[356107408,1741909880770,-610.98,0.00025164,3]
[356107409,1741909880779,-500.0,0.00025164,3]
[356107410,1741909880788,-500.0,0.00025164,3]
[356107411,1741909880798,-792.15,0.00025164,3]
[356107412,1741909880807,-1894.67,0.00025164,3]
[356107413,1741909880816,-500.0,0.00025164,3]
[356107414,1741909880826,-1930.42,0.00025164,3]
[356107415,1741909880835,-1350.01,0.00025164,3]
[356107416,1741909880844,-500.0,0.00025164,3]
[356107417,1741909880855,-500.0,0.00025164,3]
[356107418,1741909880864,-500.0,0.00025164,3]
[356107419,1741909880874,-659.78,0.00025164,3]
[356107420,1741909880884,-666.36,0.00025164,3]
[356107421,1741909880893,-500.0,0.00025164,3]
[356107422,1741909880902,-500.0,0.00025164,3]
[356107423,1741909880911,-740.67,0.00025164,3]
[356107424,1741909880921,-500.0,0.00025164,3]
[356107425,1741909880930,-500.0,0.00025164,3]
[356107426,1741909880939,-1446.01,0.00025164,3]
[356107427,1741909880949,-500.0,0.00025164,3]
[356107428,1741909880958,-506.61,0.00025164,3]
[356107429,1741909880968,-1542.57,0.00025164,3]
[356107430,1741909880978,-679.28,0.00025164,3]
[356107431,1741909880987,-509.45,0.00025164,3]
[356107432,1741909880997,-528.56,0.00025164,3]
[356107433,1741909881006,-803.83,0.00025164,3]
[356107434,1741909881016,-500.0,0.00025164,3]
[356107435,1741909881025,-500.0,0.00025164,3]
[356107436,1741909881035,-500.0,0.00025164,3]
[356107437,1741909881044,-500.0,0.00025164,3]
[356107438,1741909881054,-3776.5,0.00025164,3]
[356107439,1741909881063,-500.0,0.00025164,3]
[356107440,1741909881073,-500.0,0.00025164,3]
[356107441,1741909881083,-618.46244183,0.00025164,3]
[356107442,1741909881092,-1817.75,0.00025164,3]
[356107443,1741909881101,-500.0,0.00025164,3]
[356107444,1741909881110,-938.17,0.00025164,3]
[356107445,1741909881120,-1921.94,0.00025164,3]
[356107446,1741909881129,-500.0,0.00025164,3]
[356107447,1741909881138,-500.0,0.00025164,3]
[356107448,1741909881148,-515.11,0.00025164,3]
[356107449,1741909881158,-519.89,0.00025164,3]
[356107450,1741909881167,-547.45,0.00025164,3]
[356107451,1741909881176,-500.0,0.00025164,3]
[356107452,1741909881186,-500.0,0.00025164,3]
[356107453,1741909881196,-500.0,0.00025164,3]
[356107454,1741909881205,-742.8,0.00025164,3]
[356107455,1741909881214,-500.0,0.00025164,3]
[356107456,1741909881223,-500.0,0.00025164,3]
[356107457,1741909881233,-947.29,0.00025164,3]
[356107458,1741909881243,-1068.83,0.00025164,3]
[356107459,1741909881253,-461.02157395,0.00025164,3]
[356107460,1741909881262,-500.0,0.00025164,3]
[356107461,1741909881272,-2343.39047706,0.0002517,2]
[356107462,1741909881281,-500.0,0.00025173,2]
[356107463,1741909881291,-361.38090178,0.00025173,2]
[356107464,1741909881300,-187.02,0.00025174,2]
[356107465,1741909881309,-438.45101399,0.00025176,2]
[356107466,1741909881318,-1771.49,0.00025189,3]
[356107467,1741909881327,-1290.76,0.00025189,3]
[356107468,1741909881337,-559.65,0.00025189,3]
[356107469,1741909881346,-1582.8,0.00025189,3]
[356107470,1741909881356,-500.0,0.00025189,3]
[356107471,1741909881365,-500.0,0.00025189,3]
[356107472,1741909881374,-463.36276584,0.00025189,3]
[356107473,1741909881385,-628.37,0.00025189,3]
[356107474,1741909881394,-500.0,0.00025189,3]
[356107475,1741909881404,-500.0,0.00025189,3]
[356107476,1741909881413,-534.48,0.00025189,3]
[356107477,1741909881423,-1267.72,0.00025189,3]
[356107478,1741909881435,-1652.9,0.00025189,3]
[356107479,1741909881444,-500.0,0.00025189,3]
[356107480,1741909881454,-2343.56,0.00025189,3]
[356107481,1741909881465,-534.22,0.00025189,3]
[356107482,1741909881474,-855.84,0.00025189,3]
[356107483,1741909881484,-1751.29,0.00025189,3]
[356107484,1741909881494,-521.41,0.00025189,3]
[356107485,1741909881504,-1817.04,0.00025189,3]
[356107486,1741909881515,-500.0,0.00025189,3]
[356107487,1741909881526,-500.0,0.00025189,3]
[356107488,1741909881535,-1529.79,0.00025189,3]
[356107489,1741909881545,-626.51,0.00025189,3]
[356107490,1741909881554,-500.0,0.00025189,3]
[356107491,1741909881563,-500.0,0.00025189,3]
[356107492,1741909881573,-647.08,0.00025189,3]
[356107493,1741909881582,-1836.79,0.00025189,3]
[356107494,1741909881592,-500.0,0.00025189,3]
[356107495,1741909881602,-500.0,0.00025189,3]
[356107496,1741909881611,-2784.94,0.00025189,3]
[356107497,1741909881620,-972.39,0.00025189,3]
[356107498,1741909881630,-1153.097042,0.00025189,3]
[356107499,1741909881639,-950.08,0.00025189,3]
[356107500,1741909881649,-663.57,0.00025189,3]
[356107501,1741909881658,-1194.86,0.00025189,3]
[356107502,1741909881668,-366.121728,0.00025189,3]
[356107503,1741909881678,-542.19,0.00025189,3]
[356107504,1741909881687,-500.0,0.00025189,3]
[356107505,1741909881697,-632.82,0.00025189,3]
[356107506,1741909881707,-153.80157,0.00025189,3]
[356107507,1741909881718,-500.0,0.00025189,3]
[356107508,1741909881727,-500.0,0.00025189,3]
[356107509,1741909881736,-500.0,0.00025189,3]
[356107510,1741909881746,-1718.94,0.00025189,3]
[356107511,1741909881755,-593.31,0.00025189,3]
[356107512,1741909881765,-1537.99,0.00025189,3]
[356107513,1741909881774,-500.0,0.00025189,3]
[356107514,1741909881783,-595.3,0.00025189,3]
[356107515,1741909881792,-500.0,0.00025189,3]
[356107516,1741909881801,-500.0,0.00025189,3]
[356107517,1741909881811,-2182.31,0.00025189,3]
[356107518,1741909881824,-500.0,0.00025189,3]
[356107519,1741909881834,-500.0,0.00025189,3]
[356107520,1741909881843,-705.21,0.00025189,3]
[356107521,1741909881853,-500.0,0.00025189,3]
[356107522,1741909881862,-500.0,0.00025189,3]
[356107523,1741909881871,-513.62,0.00025189,3]
[356107524,1741909881881,-1703.64,0.00025189,3]
[356107525,1741909881891,-500.0,0.00025189,3]
[356107526,1741909881900,-500.0,0.00025189,3]
[356107527,1741909881910,-500.0,0.00025189,3]
[356107528,1741909881919,-3566.18,0.00025189,2]
[356107529,1741909881928,-500.0,0.00025189,3]
[356107530,1741909881938,-500.0,0.00025189,3]
[356107531,1741909881948,-1632.96,0.00025189,3]
[356107532,1741909881958,-500.0,0.00025189,3]
[356107533,1741909881968,-1051.26,0.00025189,3]
[356107534,1741909881978,-355.70220074,0.00025189,3]
[356107535,1741909881987,-500.0,0.00025189,3]
[356107536,1741909881997,-1030.95,0.00025189,3]
[356107537,1741909882006,-500.0,0.00025189,3]
[356107538,1741909882015,-732.74,0.00025189,3]
[356107539,1741909882024,-385.1947237,0.00025189,3]
[356107540,1741909882033,-636.55,0.00025189,3]
[356107541,1741909882043,-500.0,0.00025189,3]
[356107542,1741909882052,-500.0,0.00025189,3]
[356107543,1741909882061,-500.0,0.00025189,3]
[356107544,1741909882071,-666.39,0.00025189,3]
[356107545,1741909882081,-3568.36,0.0002519,3]
[356107546,1741909882090,-1183.0,0.0002519,2]
[356107547,1741909882100,-2980.86,0.0002519,3]
[356107548,1741909882110,-1531.97,0.0002519,3]
[356107549,1741909882119,-767.63,0.0002519,3]
[356107550,1741909882128,-638.89,0.0002519,3]
[356107551,1741909882138,-1612.27,0.0002519,3]
[356107552,1741909882148,-866.68,0.0002519,3]
[356107553,1741909882157,-1909.43,0.0002519,3]
[356107554,1741909882167,-503.16,0.0002519,3]
[356107555,1741909882176,-957.65,0.0002519,3]
[356107556,1741909882185,-686.97,0.0002519,3]
[356107557,1741909882195,-1023.55,0.0002519,3]
[356107558,1741909882218,-705.12,0.0002519,3]
[356107559,1741909882227,-500.0,0.0002519,3]
[356107560,1741909882236,-2081.77,0.0002519,3]
[356107561,1741909882245,-581.8,0.0002519,3]
[356107562,1741909882255,-1551.28,0.0002519,3]
[356107563,1741909882264,-1223.35,0.0002519,3]
[356107564,1741909882273,-575.64,0.0002519,3]
[356107565,1741909882283,-2382.43,0.0002519,3]
[356107566,1741909882291,-500.0,0.0002519,3]
[356107567,1741909882301,-1633.72,0.0002519,3]
[356107568,1741909882310,-1670.95,0.0002519,3]
[356107569,1741909882319,-2647.01,0.0002519,3]
[356107570,1741909882328,-694.85,0.0002519,3]
[356107571,1741909882337,-1726.02,0.0002519,3]
[356107572,1741909882346,-703.55,0.0002519,3]
[356107573,1741909882355,-1847.97,0.0002519,3]
[356107574,1741909882502,-500.0,0.0002519,3]
[356107575,1741909882514,-1122.02,0.0002519,3]
[356107576,1741909882523,-547.84,0.0002519,3]
[356107577,1741909882532,-500.0,0.0002519,3]
[356107578,1741909882542,-685.17,0.0002519,3]
[356107579,1741909882551,-760.24,0.0002519,3]
[356107580,1741909882560,-1136.63,0.0002519,3]
[356107581,1741909882570,-151.0,0.00025191,7]
[356107582,1741909882579,-500.0,0.00025191,3]
[356107583,1741909882588,-500.0,0.00025191,3]
[356107584,1741909882598,-1821.49,0.00025191,3]
[356107585,1741909882607,-1637.021766,0.00025191,7]
[356107586,1741909882618,-500.0,0.00025191,3]
[356107587,1741909882627,-1637.021766,0.00025191,7]
[356107588,1741909882637,-534.21,0.00025191,3]
[356107589,1741909882646,-721.07,0.00025191,3]
[356107590,1741909882656,-500.0,0.00025191,3]
[356107591,1741909882665,-835.2,0.00025191,3]
[356107592,1741909882674,-500.0,0.00025191,3]
[356107593,1741909882683,-640.39,0.00025191,3]
[356107594,1741909882693,-1649.68,0.00025191,3]
[356107595,1741909882702,-500.0,0.00025191,3]
[356107596,1741909882712,-500.0,0.00025191,3]
[356107597,1741909882721,-151.0,0.00025191,7]
[356107598,1741909882730,-602.71,0.00025191,3]
[356107599,1741909882739,-185.452921,0.00025191,7]
[356107600,1741909882748,-500.0,0.00025191,3]
[356107601,1741909882758,-185.452921,0.00025191,7]
[356107602,1741909882767,-500.0,0.00025191,3]
[356107603,1741909882776,-500.0,0.00025191,3]
[356107604,1741909882785,-500.0,0.00025191,3]
[356107605,1741909882795,-500.0,0.00025191,3]
[356107606,1741909882804,-500.0,0.00025191,3]
[356107607,1741909882813,-363.544473,0.00025191,7]
[356107608,1741909882823,-363.544473,0.00025191,7]
[356107609,1741909882833,-500.0,0.00025191,3]
[356107610,1741909882842,-938.73,0.00025191,3]
[356107611,1741909882852,-717.27,0.00025191,3]
[356107612,1741909882861,-1058.89,0.00025191,3]
[356107613,1741909882871,-942.53,0.00025191,3]
[356107614,1741909882880,-578.57,0.00025191,3]
[356107615,1741909882890,-909.28,0.00025191,3]
[356107616,1741909882899,-618.61,0.00025191,3]
[356107617,1741909882909,-500.0,0.00025191,3]
[356107618,1741909882918,-500.0,0.00025191,3]
[356107619,1741909882928,-500.0,0.00025191,3]
[356107620,1741909882938,-500.0,0.00025191,3]
[356107621,1741909882947,-933.18,0.00025191,3]
[356107622,1741909882956,-500.0,0.00025191,3]
[356107623,1741909882967,-610.2,0.00025191,3]
[356107624,1741909882976,-191.184227,0.00025191,7]
[356107625,1741909882986,-500.0,0.00025191,3]
[356107626,1741909882995,-191.184227,0.00025191,7]
[356107627,1741909883004,-262.17523,0.00025191,7]
[356107628,1741909883014,-500.0,0.00025191,3]
[356107629,1741909883023,-262.17523,0.00025191,7]
[356107630,1741909883033,-157.966654,0.00025191,7]
[356107631,1741909883043,-157.966654,0.00025191,7]
[356107632,1741909883052,-500.0,0.00025191,3]
[356107633,1741909883062,-157.966654,0.00025191,7]
[356107634,1741909883072,-157.966653,0.00025191,7]
[356107635,1741909883081,-500.0,0.00025191,3]
[356107636,1741909883091,-10000.0,0.00025191,7]
[356107637,1741909883100,-500.0,0.00025191,3]
[356107638,1741909883110,-566.43529626,0.00025191,3]
[356107639,1741909883119,-500.0,0.00025191,3]
[356107640,1741909883129,-10000.0,0.00025191,7]
[356107641,1741909883139,-500.0,0.00025191,3]
[356107642,1741909883148,-10000.0,0.00025191,7]
[356107643,1741909883157,-10000.0,0.00025191,7]
[356107644,1741909883167,-192.25947121,0.00025191,3]
[356107645,1741909883176,-10000.0,0.00025191,7]
[356107646,1741909883185,-2202.251602,0.00025191,7]
[356107647,1741909883195,-1597.02,0.00025191,3]
[356107648,1741909883204,-10000.0,0.00025191,7]
[356107649,1741909883214,-2202.251602,0.00025191,7]
[356107650,1741909883223,-500.0,0.00025191,3]
[356107651,1741909883232,-506.95184098,0.00025191,3]
[356107652,1741909883242,-575.35006084,0.00025191,3]
[356107653,1741909883252,-1208.71,0.00025191,3]
[356107654,1741909883262,-500.0,0.00025191,3]
[356107655,1741909883271,-961.24,0.00025191,3]
[356107656,1741909883280,-500.0,0.00025191,3]
[356107657,1741909883290,-484.63281866,0.00025191,3]
[356107658,1741909883300,-500.0,0.00025191,3]
[356107659,1741909883309,-500.0,0.00025191,3]
[356107660,1741909883318,-500.0,0.00025191,3]
[356107661,1741909883328,-500.0,0.00025191,3]
[356107662,1741909883338,-500.0,0.00025191,3]
[356107663,1741909883347,-945.98,0.00025191,3]
[356107664,1741909883357,-500.0,0.00025191,3]
[356107665,1741909883366,-500.0,0.00025191,3]
[356107666,1741909883376,-500.0,0.00025191,3]
[356107667,1741909883385,-500.0,0.00025191,3]
[356107668,1741909883395,-599.05,0.00025191,3]
[356107669,1741909883404,-500.0,0.00025191,3]
[356107670,1741909883414,-256.66937698,0.00025191,3]
[356107671,1741909883424,-1322.8,0.00025191,3]
[356107672,1741909883436,-500.0,0.00025191,3]
[356107673,1741909883446,-500.0,0.00025191,3]
[356107674,1741909883456,-524.04,0.00025191,3]
[356107675,1741909883465,-500.0,0.00025191,3]
[356107676,1741909883475,-500.0,0.00025191,3]
[356107677,1741909883484,-500.0,0.00025191,3]
[356107678,1741909883494,-500.0,0.00025191,3]
[356107679,1741909883503,-1162.99,0.00025191,3]
[356107680,1741909883514,-151.0,0.00025191,7]
[356107681,1741909883524,-1064.48,0.00025191,3]
[356107682,1741909883533,-500.0,0.00025191,3]
[356107683,1741909883543,-500.0,0.00025191,3]
[356107684,1741909883552,-2009.2,0.00025191,3]
[356107685,1741909883562,-1104.79,0.00025191,3]
[356107686,1741909883571,-1347.3,0.00025191,2]
[356107687,1741909883581,-500.0,0.00025191,3]
[356107688,1741909883590,-500.0,0.00025191,3]
[356107689,1741909883600,-1045.89,0.00025191,3]
[356107690,1741909883609,-500.0,0.00025191,3]
[356107691,1741909883618,-500.0,0.00025191,3]
[356107692,1741909883628,-500.0,0.00025191,3]
[356107693,1741909883637,-500.0,0.00025191,3]
[356107694,1741909883646,-1177.15,0.00025191,3]
[356107695,1741909883655,-1278.64,0.00025191,3]
[356107696,1741909883665,-1471.45,0.00025191,3]
[356107697,1741909883675,-500.0,0.00025191,3]
[356107698,1741909883684,-500.0,0.00025191,3]
[356107699,1741909883694,-500.0,0.00025191,3]
[356107700,1741909883704,-500.0,0.00025191,3]
[356107701,1741909883713,-500.0,0.00025191,3]
[356107702,1741909883722,-539.09698415,0.00025191,3]
[356107703,1741909883732,-1032.31,0.00025191,3]
[356107704,1741909883741,-500.0,0.00025191,3]
[356107705,1741909883750,-500.0,0.00025191,3]
[356107706,1741909883759,-516.89,0.00025191,3]
[356107707,1741909883769,-1030.03,0.00025191,3]
[356107708,1741909883778,-500.0,0.00025191,3]
[356107709,1741909883788,-500.0,0.00025191,3]
[356107710,1741909883797,-500.0,0.00025191,3]
[356107711,1741909883806,-500.0,0.00025191,3]
[356107712,1741909883815,-500.0,0.00025191,3]
[356107713,1741909883824,-500.0,0.00025191,3]
[356107714,1741909883833,-500.0,0.00025191,3]
[356107715,1741909883843,-520.87,0.00025191,3]
[356107716,1741909883852,-583.44,0.00025191,3]
[356107717,1741909883861,-500.0,0.00025191,3]
[356107718,1741909883870,-531.32,0.00025191,3]
[356107719,1741909883879,-549.11,0.00025191,3]
[356107720,1741909883889,-500.0,0.00025191,3]
[356107721,1741909883898,-500.0,0.00025191,3]
[356107722,1741909883907,-500.0,0.00025191,3]
[356107723,1741909883916,-500.0,0.00025191,3]
[356107724,1741909883925,-500.0,0.00025191,3]
[356107725,1741909883936,-500.0,0.00025191,3]
[356107726,1741909883946,-665.05,0.00025191,3]
[356107727,1741909883955,-500.0,0.00025191,2]
[356107728,1741909883965,-1886.33,0.00025191,3]
[356107729,1741909883975,-472.86935129,0.00025191,3]
[356107730,1741909883984,-192.50342705,0.00025191,3]
[356107731,1741909883993,-500.0,0.00025191,3]
[356107732,1741909884002,-1603.3,0.00025191,3]
[356107733,1741909884012,-500.0,0.00025191,3]
[356107734,1741909884022,-1399.34,0.00025191,3]
[356107735,1741909884031,-507.55,0.00025191,3]
[356107736,1741909884040,-500.0,0.00025191,3]
[356107737,1741909884049,-500.0,0.00025191,3]
[356107738,1741909884058,-500.0,0.00025191,3]
[356107739,1741909884067,-500.0,0.00025191,3]
[356107740,1741909884077,-500.0,0.00025191,3]
[356107741,1741909884086,-1162.37,0.00025191,3]
[356107742,1741909884095,-503.04,0.00025191,3]
[356107743,1741909884104,-637.46,0.00025191,3]
[356107744,1741909884113,-500.0,0.00025191,3]
[356107745,1741909884122,-500.0,0.00025191,3]
[356107746,1741909884131,-500.0,0.00025191,3]
[356107747,1741909884142,-500.0,0.00025191,3]
[356107748,1741909884152,-500.0,0.00025191,3]
[356107749,1741909884161,-500.0,0.00025191,3]
[356107750,1741909884171,-1799.26,0.00025191,3]
[356107751,1741909884180,-1000.0,0.00025191,60]
[356107752,1741909884190,-500.0,0.00025191,3]
[356107753,1741909884200,-500.0,0.00025191,3]
[356107754,1741909884208,-500.0,0.00025191,3]
[356107755,1741909884220,-1038.47,0.00025191,3]
[356107756,1741909884230,-500.0,0.00025191,3]
[356107757,1741909884240,-1488.89,0.00025191,3]
[356107758,1741909884250,-509.79,0.00025191,3]
[356107759,1741909884260,-279.28615901,0.00025191,3]
[356107760,1741909884269,-1529.19,0.00025191,3]
[356107761,1741909884278,-1146.19,0.00025191,3]
[356107762,1741909884288,-500.0,0.00025191,3]
[356107763,1741909884298,-500.0,0.00025191,3]
[356107764,1741909884307,-1230.07,0.00025191,3]
[356107765,1741909884316,-1616.56,0.00025191,3]
[356107766,1741909884325,-500.0,0.00025191,3]
[356107767,1741909884334,-500.0,0.00025191,3]
[356107768,1741909884344,-500.0,0.00025191,3]
[356107769,1741909884353,-500.0,0.00025191,3]
[356107770,1741909884363,-766.89,0.00025191,3]
[356107771,1741909884372,-828.77,0.00025191,3]
[356107772,1741909884381,-503.06,0.00025191,3]
[356107773,1741909884391,-566.59,0.00025191,3]
[356107774,1741909884400,-877.86,0.00025191,3]
[356107775,1741909884409,-1515.34,0.00025191,3]
[356107776,1741909884419,-500.0,0.00025191,3]
[356107777,1741909884429,-974.37,0.00025191,3]
[356107778,1741909884443,-637.9,0.00025191,3]
[356107779,1741909884452,-878.52,0.00025191,3]
[356107780,1741909884462,-500.0,0.00025191,3]
[356107781,1741909884475,-500.0,0.00025191,3]
[356107782,1741909884484,-500.0,0.00025191,3]
[356107783,1741909884494,-500.0,0.00025191,3]
[356107784,1741909884504,-500.0,0.00025191,3]
[356107785,1741909884513,-500.0,0.00025191,3]
[356107786,1741909884522,-500.0,0.00025191,3]
[356107787,1741909884532,-500.0,0.00025191,3]
[356107788,1741909884541,-581.67,0.00025191,3]
[356107789,1741909884551,-1951.21,0.00025191,3]
[356107790,1741909884561,-500.0,0.00025191,3]
[356107791,1741909884571,-500.0,0.00025191,3]
[356107792,1741909884581,-500.0,0.00025191,3]
[356107793,1741909884590,-2023.2,0.00025191,3]
[356107794,1741909884599,-2022.67,0.00025191,3]
[356107795,1741909884609,-1071.52,0.00025191,3]
[356107796,1741909884618,-573.17882593,0.00025191,3]
[356107797,1741909884628,-188.85148507,0.00025191,3]
[356107798,1741909884639,-1319.48,0.00025191,3]
[356107799,1741909884649,-1318.79,0.00025191,3]
[356107800,1741909884659,-817.82,0.00025191,3]
[356107801,1741909884669,-1858.28,0.00025191,3]
[356107802,1741909884678,-500.0,0.00025191,3]
[356107803,1741909884688,-500.0,0.00025191,3]
[356107804,1741909884697,-500.0,0.00025191,3]
[356107805,1741909884707,-1341.33,0.00025191,3]
[356107806,1741909884718,-500.0,0.00025191,3]
[356107807,1741909884728,-500.0,0.00025191,3]
[356107808,1741909884737,-500.0,0.00025191,3]
[356107809,1741909884747,-1345.3,0.00025191,3]
[356107810,1741909884756,-500.0,0.00025191,3]
[356107811,1741909884766,-500.0,0.00025191,2]
[356107812,1741909884777,-1005.07,0.00025191,3]
[356107813,1741909884787,-2009.8,0.00025191,3]
[356107814,1741909884796,-761.68,0.00025191,3]
[356107815,1741909884806,-500.0,0.00025191,3]
[356107816,1741909884816,-500.0,0.00025191,3]
[356107817,1741909884827,-500.0,0.00025191,3]
[356107818,1741909884837,-1173.33,0.00025191,3]
[356107819,1741909884847,-1194.67,0.00025191,3]
[356107820,1741909884857,-617.32082624,0.00025191,3]
[356107821,1741909884867,-187.69080703,0.00025191,3]
[356107822,1741909884876,-500.0,0.00025191,3]
[356107823,1741909884886,-500.0,0.00025191,3]
[356107824,1741909884896,-647.14,0.00025191,3]
[356107825,1741909884906,-610.98,0.00025191,3]
[356107826,1741909884917,-1389.09,0.00025191,3]
[356107827,1741909884927,-500.0,0.00025191,3]
[356107828,1741909884937,-558.82,0.00025191,3]
[356107829,1741909884947,-535.09,0.00025191,3]
[356107830,1741909884957,-500.0,0.00025191,3]
[356107831,1741909884967,-1705.22,0.00025191,3]
[356107832,1741909884978,-792.15,0.00025191,3]
[356107833,1741909884988,-1894.67,0.00025191,3]
[356107834,1741909884997,-1930.42,0.00025191,3]
[356107835,1741909885007,-500.0,0.00025191,3]
[356107836,1741909885016,-573.45,0.00025191,3]
[356107837,1741909885026,-4252.22,0.00025191,3]
[356107838,1741909885036,-1350.01,0.00025191,3]
[356107839,1741909885046,-500.0,0.00025191,3]
[356107840,1741909885056,-500.0,0.00025191,3]
[356107841,1741909885066,-957.24,0.00025191,3]
[356107842,1741909885076,-813.96,0.00025191,3]
[356107843,1741909885087,-500.0,0.00025191,3]
[356107844,1741909885098,-659.78,0.00025191,3]
[356107845,1741909885108,-666.36,0.00025191,3]
[356107846,1741909885118,-500.0,0.00025191,3]
[356107847,1741909885129,-500.0,0.00025191,3]
[356107848,1741909885138,-1214.54,0.00025191,3]
[356107849,1741909885148,-500.0,0.00025191,3]
[356107850,1741909885158,-500.0,0.00025191,3]
[356107851,1741909885168,-740.67,0.00025191,3]
[356107852,1741909885177,-500.0,0.00025191,3]
[356107853,1741909885187,-500.0,0.00025191,3]
[356107854,1741909885196,-1011.7,0.00025191,3]
[356107855,1741909885206,-1446.01,0.00025191,3]
[356107856,1741909885216,-509.81,0.00025191,3]
[356107857,1741909885226,-500.0,0.00025191,3]
[356107858,1741909885236,-506.61,0.00025191,3]
[356107859,1741909885246,-1624.15,0.00025191,3]
[356107860,1741909885256,-1714.12,0.00025191,3]
[356107861,1741909885266,-1542.57,0.00025191,3]
[356107862,1741909885276,-679.28,0.00025191,3]
[356107863,1741909885285,-511.82,0.00025191,3]
[356107864,1741909885295,-732.6,0.00025191,3]
[356107865,1741909885305,-509.45,0.00025191,3]
[356107866,1741909885315,-528.56,0.00025191,3]
[356107867,1741909885324,-803.83,0.00025191,3]
[356107868,1741909885334,-500.0,0.00025191,3]
[356107869,1741909885344,-500.0,0.00025191,3]
[356107870,1741909885354,-500.0,0.00025191,3]
[356107871,1741909885365,-1621.13,0.00025191,3]
[356107872,1741909885374,-500.0,0.00025191,3]
[356107873,1741909885384,-684.37,0.00025191,3]
[356107874,1741909885394,-500.0,0.00025191,3]
[356107875,1741909885403,-3776.5,0.00025191,3]
[356107876,1741909885413,-500.0,0.00025191,3]
[356107877,1741909885423,-500.0,0.00025191,3]